bitfinex-derivatives/quotes_SOLF0:USTF0_20241227
["timestamp","ask_amount","ask_price","bid_price","bid_amount"]
[1735263072686,2.6488,189.0,188.93,4.74]
[1735263072883,2.6488,189.0,188.96,8.92381694]
[1735263073284,2.6488,189.0,188.93,4.74]
[1735263073285,6.27451694,189.0,188.93,3.2034]
[1735263073485,6.27451694,189.0,188.94,3.1]
[1735263074494,2.6495,188.96,188.94,3.1]
[1735263074885,105.10006858,189.02,188.94,9.37451694]
[1735263074886,111.37458552,189.02,188.94,9.37451694]
[1735263075186,29.3467081,189.06,188.98,6.27451694]
[1735263075391,29.3467081,189.06,189.01,2.6486]
[1735263075788,2.6482,189.05,189.01,2.6486]
[1735263076289,30.9895081,189.1,189.02,3.1]
[1735263076693,1.6428,189.1,189.02,5.7485]
[1735263077183,9.78416459,189.11,189.03,2.6484]
[1735263078880,2.648,189.06,189.02,3.1]
[1735263079094,9.78416459,189.11,189.02,3.1]
[1735263079793,41.75257269,189.14,189.02,3.1]
[1735263079988,0.86123907,189.13,189.02,3.1]
[1735263080192,41.75257269,189.14,189.03,1.6019]
[1735263080393,0.86124241,189.13,189.03,1.6019]
[1735263081093,9.78416459,189.11,189.04,3.1]
[1735263081283,9.78416459,189.11,188.97,11.38606459]
[1735263081489,9.78416459,189.11,188.98,3.1]
[1735263081991,2.6484,189.04,189.0,2.6488]
[1735263082889,9.78416459,189.11,188.98,3.1]
[1735263083088,7.33667702,189.12,189.0,9.78416459]
[1735263083884,2.6477,189.08,189.04,2.6481]
[1735263084092,2.6477,189.08,189.05,3.1]
[1735263086501,1.6708,189.14,189.05,3.1]
[1735263087200,2.6477,189.09,189.05,3.1]
[1735263087393,1.6708,189.14,189.05,3.1]
[1735263088403,2.6477,189.08,189.05,3.1]
[1735263090001,2.648,189.06,189.05,3.1]
[1735263091901,2.6478,189.07,189.05,3.1]
[1735263094113,2.648,189.06,189.05,3.1]
[1735263094811,136.0532733,189.14,189.05,3.1]
[1735263095015,136.0532733,189.14,189.05,5.7481]
[1735263095614,114.04324222,189.14,189.05,5.7481]
[1735263095808,2.6472,189.12,189.05,5.7481]
[1735263096112,6.2599416,189.12,189.05,5.7481]
[1735263097521,2.6477,189.08,189.05,5.7481]
[1735263101716,6.2599416,189.12,189.05,3.1]
[1735263101914,2.648,189.06,189.05,3.1]
[1735263108618,2.6482,189.05,189.02,2.6485]
[1735263108818,2.6482,189.05,189.03,3.1]
[1735263110212,2.6482,189.05,189.03,5.7484]
[1735263111021,6.2599416,189.1,189.03,5.7484]
[1735263111217,2.648,189.06,189.03,5.7484]
[1735263115821,2.648,189.06,189.03,12.0083416]
[1735263119321,2.6477,189.09,189.06,2.648]
[1735263120021,31.9940081,189.11,189.08,2.6477]
[1735263120317,9.98397702,189.11,189.09,3.1]
[1735263120523,2.6476,189.09,189.06,2.6479]
[1735263120723,6.2599416,189.08,189.04,4.6264]
[1735263120913,6.2599416,189.1,189.04,4.6264]
[1735263121118,2.6478,189.08,189.04,4.6264]
[1735263122114,6.2599416,189.1,189.04,4.6264]
[1735263122318,6.2599416,189.1,189.01,6.2599416]
[1735263122624,6.2599416,189.1,189.03,2.6483]
[1735263123223,2.6481,189.06,189.03,2.6483]
[1735263124424,2.6481,189.06,189.03,5.7483]
[1735263130624,13.59661862,189.1,189.03,3.1]
[1735263130827,2.6481,189.05,189.03,3.1]
[1735263133223,35.6066497,189.1,189.03,3.1]
[1735263133429,2.6482,189.04,189.03,3.1]
[1735263134027,6.2599416,189.08,189.01,3.1]
[1735263134731,2.6484,189.03,189.01,3.1]
[1735263137338,29.3467081,189.09,189.01,9.3599416]
[1735263137629,29.3467081,189.09,189.03,6.2599416]
[1735263138029,2.648,189.06,189.03,8.9082416]
[1735263138633,2.6481,189.05,189.04,3.1]
[1735263139436,35.6066497,189.11,189.04,3.1]
[1735263141341,2.6481,189.05,189.04,3.1]
[1735263145548,13.59661862,189.11,189.04,3.1]
[1735263145748,7.33667702,189.1,189.04,3.1]
[1735263146342,2.6478,189.08,189.05,2.648]
[1735263147946,134.38743831,189.12,189.04,3.1]
[1735263148147,2.6478,189.07,189.04,5.7482]
[1735263148345,2.6478,189.07,189.04,2.6482]
[1735263148542,2.6478,189.07,189.04,5.7482]
[1735263162252,2.6477,189.09,189.04,3.1]
[1735263162558,7.33667702,189.12,189.05,6.2599416]
[1735263162858,2.6474,189.1,189.07,2.6477]
[1735263165459,2.6475,189.09,189.07,2.6477]
[1735263167260,6.2599416,189.11,189.01,3.3127]
[1735263167452,6.2599416,189.11,189.02,9.3599416]
[1735263167852,6.2599416,189.11,189.03,2.6483]
[1735263168559,2.648,189.06,189.03,2.6483]
[1735263169159,6.2599416,189.11,189.03,2.6483]
[1735263169359,2.6481,189.05,189.02,12.0084416]
[1735263169754,6.2599416,189.11,189.02,12.0084416]
[1735263169951,6.2599416,189.07,189.02,3.1]
[1735263170655,2.6484,189.03,189.02,3.1]
[1735263170957,2.6483,189.04,189.0,3.1]
[1735263171273,6.2599416,189.05,189.0,3.1]
[1735263172463,2.6486,189.01,189.0,3.1]
[1735263174161,2.648,189.06,189.0,3.1]
[1735263174359,35.6066497,189.08,189.0,5.7487]
[1735263174859,2.6484,189.03,189.0,5.7487]
[1735263177265,2.6485,189.02,189.0,3.1]
[1735263178267,2.6484,189.03,189.0,3.1]
[1735263181159,2.6487,189.01,188.99,6.2599416]
[1735263181365,2.6487,189.01,189.0,3.1]
[1735263181670,6.2599416,189.06,188.98,4.7266]
[1735263181860,6.2599416,189.06,188.98,3.1]
[1735263182668,2.6489,188.99,188.98,3.1]
[1735263182868,6.2599416,189.06,188.98,3.1]
[1735263185468,2.6489,189.0,188.98,3.1]
[1735263186572,2.6487,189.01,188.98,5.749]
[1735263186973,7.8331416,189.07,188.99,6.2599416]
[1735263187174,2.6486,189.02,188.99,8.9087416]
[1735263187777,2.6488,189.01,188.99,6.2599416]
[1735263189078,7.8331416,189.07,188.99,6.2599416]
[1735263189278,2.6488,189.0,188.99,6.2599416]
[1735263192082,2.6488,189.0,188.98,3.1]
[1735263194182,2.6486,189.02,188.99,8.9088416]
[1735263194379,17.02220106,189.08,189.01,6.2599416]
[1735263195591,9.68552404,189.08,189.01,6.2599416]
[1735263196585,2.6481,189.05,189.02,2.6484]
[1735263196781,2.6481,189.05,189.03,3.1]
[1735263197386,2.6482,189.04,189.03,3.1]
[1735263197991,2.6481,189.05,189.03,3.1]
[1735263199389,2.6482,189.05,189.03,5.7484]
[1735263199685,2.6482,189.05,189.03,3.1]
[1735263200485,2.6481,189.07,189.03,9.3599416]
[1735263200694,2.6481,189.07,189.05,6.2599416]
[1735263201086,2.6482,189.06,189.03,9.3599416]
[1735263201386,3.42558244,189.08,189.03,9.3599416]
[1735263201981,2.6483,189.05,189.03,9.3599416]
[1735263204192,3.42558244,189.08,189.03,9.3599416]
[1735263204394,29.3467081,189.11,189.07,6.2599416]
[1735263204698,29.3467081,189.11,189.08,3.1]
[1735263205197,2.6476,189.1,189.08,3.1]
[1735263205901,2.6477,189.09,189.08,3.1]
[1735263207698,6.2599416,189.12,189.05,6.2599416]
[1735263207899,6.2599416,189.1,189.05,3.1]
[1735263208290,2.6481,189.06,189.05,3.1]
[1735263213002,6.2599416,189.08,188.95,3.2441]
[1735263213202,29.3467081,189.12,188.95,3.2441]
[1735263213203,6.2599416,189.06,188.96,1.6033]
[1735263213495,6.2599416,189.04,188.98,5.73290957]
[1735263214001,2.6491,188.99,188.98,5.73290957]
[1735263214393,2.6491,188.99,188.98,3.1]
[1735263218107,6.2599416,189.04,188.96,1.6033]
[1735263218403,2.6493,188.98,188.97,3.1]
[1735263219799,2.6491,188.99,188.97,9.3599416]
[1735263220100,35.6066497,189.06,188.97,9.3599416]
[1735263220604,6.2599416,189.06,188.97,9.3599416]
[1735263221506,2.649,189.0,188.97,12.0093416]
[1735263222206,2.6492,188.98,188.97,9.3599416]
[1735263222408,2.6492,188.98,188.97,3.1]
[1735263226111,2.6492,188.98,188.96,1.6033]
[1735263226404,6.2599416,189.04,188.97,3.1]
[1735263226607,2.6491,188.99,188.97,9.3599416]
[1735263227907,2.6489,189.01,188.97,12.0092416]
[1735263228111,2.6489,189.01,188.99,6.2599416]
[1735263230113,6.2599416,189.06,188.99,6.2599416]
[1735263230315,2.649,189.0,188.99,6.2599416]
[1735263234915,6.2599416,189.06,188.99,6.2599416]
[1735263235110,2.6486,189.03,189.0,2.6489]
[1735263235816,2.6483,189.05,188.99,6.2599416]
[1735263236016,9.68548632,189.08,188.99,6.2599416]
[1735263236614,2.6485,189.04,189.01,2.6488]
[1735263236820,2.6485,189.04,189.02,3.1]
[1735263238319,2.6482,189.06,189.03,8.9084416]
[1735263238520,3.42554472,189.08,189.03,8.9084416]
[1735263238521,3.42554472,189.08,189.03,6.2599416]
[1735263240520,2.648,189.07,189.04,2.6483]
[1735263243221,6.2599416,189.11,189.02,3.1]
[1735263243222,2.6476,189.1,189.07,2.6479]
[1735263243422,2.6476,189.1,189.08,3.1]
[1735263251219,2.6474,189.11,189.08,5.7478]
[1735263255928,2.6476,189.1,189.08,5.7478]
[1735263258235,2.6476,189.1,189.08,3.1]
[1735263260532,100.65099919,189.16,189.09,6.2599416]
[1735263260829,7.33667702,189.18,189.15,6.2599416]
[1735263261038,7.33667702,189.18,189.16,3.1]
[1735263261332,7.33667702,189.18,189.17,6.2599416]
[1735263261527,7.33667702,189.18,189.16,3.1]
[1735263261733,6.2599416,189.25,189.17,6.2599416]
[1735263261734,34.27864866,189.24,189.17,6.2599416]
[1735263262128,6.2599416,189.23,189.16,3.1]
[1735263262328,0.85929926,189.22,189.16,3.1]
[1735263262532,6.2599416,189.2,189.16,3.1]
[1735263262934,34.27864866,189.24,189.16,3.1]
[1735263262935,6.2599416,189.18,189.16,3.1]
[1735263263523,12.75915315,189.24,189.16,3.1]
[1735263263734,8.9065416,189.17,189.16,3.1]
[1735263264233,2.6471,189.14,189.13,3.1]
[1735263267433,2.6474,189.11,189.1,2.63128219]
[1735263267629,2.6474,189.11,189.1,5.73128219]
[1735263270135,6.2599416,189.16,189.09,3.1]
[1735263271234,2.6475,189.1,189.09,3.1]
[1735263273331,6.2599416,189.14,189.09,3.1]
[1735263273539,6.2599416,189.1,188.95,7.25399672]
[1735263273731,6.2599416,189.1,189.04,3.1]
[1735263273931,6.2599416,189.08,189.03,3.1]
[1735263274331,101.82193325,189.1,189.03,3.1]
[1735263274537,2.6484,189.04,189.03,3.1]
[1735263276135,2.6489,189.01,188.99,6.2599416]
[1735263276325,2.6489,189.01,188.99,9.3599416]
[1735263276737,2.6489,189.01,188.97,2.6493]
[1735263276931,2.6489,189.01,188.98,9.3599416]
[1735263278537,2.6489,189.01,188.98,12.0091416]
[1735263278735,2.6487,189.02,188.98,12.0091416]
[1735263279938,2.6487,189.02,189.0,6.2599416]
[1735263280132,6.2599416,189.08,189.0,6.2599416]
[1735263280436,2.6485,189.03,189.0,6.2599416]
[1735263280837,6.2599416,189.08,188.98,3.1]
[1735263280838,2.649,189.0,188.98,3.1]
[1735263281044,2.649,189.0,188.99,6.2599416]
[1735263281938,2.649,189.0,188.99,9.3599416]
[1735263282139,2.6487,189.02,188.99,9.3599416]
[1735263282841,2.6489,189.0,188.99,9.3599416]
[1735263285347,6.2599416,189.06,188.99,9.3599416]
[1735263285535,2.6488,189.01,188.99,9.3599416]
[1735263288631,2.6489,189.01,188.99,3.1]
[1735263288939,6.2599416,189.06,188.99,3.1]
[1735263289539,2.6489,189.0,188.99,3.1]
[1735263289940,6.2599416,189.06,188.99,3.1]
[1735263291043,2.6488,189.02,188.99,5.7491]
[1735263291243,2.6488,189.02,188.99,3.1]
[1735263293240,2.6488,189.02,188.99,5.7491]
[1735263293742,2.6488,189.02,188.99,3.1]
[1735263294045,2.6488,189.02,189.0,6.2599416]
[1735263294644,2.6485,189.04,189.0,6.2599416]
[1735263294840,6.2599416,189.08,189.0,6.2599416]
[1735263295047,2.6486,189.03,189.0,6.2599416]
[1735263296644,2.6486,189.03,189.0,8.9088416]
[1735263298847,6.2599416,189.08,189.0,6.2599416]
[1735263299045,2.6487,189.02,189.0,6.2599416]
[1735263303854,6.2599416,189.08,189.0,6.2599416]
[1735263304055,2.6488,189.01,189.0,6.2599416]
[1735263304755,2.6488,189.01,189.0,9.3599416]
[1735263306157,6.2599416,189.06,188.95,59.90497566]
[1735263306356,2.6495,188.96,188.95,63.00497566]
[1735263309860,22.01003108,189.03,188.94,3.1]
[1735263309861,2.6494,188.97,188.94,3.1]
[1735263310059,6.2599416,188.98,188.94,3.1]
[1735263310455,2.6496,188.95,188.94,3.1]
[1735263310657,6.2599416,188.98,188.91,2.63363872]
[1735263310852,2.6495,188.97,188.92,3.1]
[1735263311061,6.2599416,189.01,188.94,6.2599416]
[1735263312861,2.6495,188.97,188.94,6.2599416]
[1735263314461,6.2599416,189.01,188.94,6.2599416]
[1735263314662,2.6492,188.99,188.96,6.2599416]
[1735263314963,6.2599416,189.03,188.97,3.1]
[1735263315264,2.6492,188.98,188.97,3.1]
[1735263321166,6.2599416,189.03,188.97,3.1]
[1735263321367,7.33667702,189.06,188.98,6.2599416]
[1735263321560,7.33667702,189.06,189.0,6.2599416]
[1735263321765,7.33667702,189.06,189.01,2.6487]
[1735263321964,7.33667702,189.06,189.02,3.1]
[1735263322467,78.71424822,189.08,189.02,12.0085416]
[1735263322468,29.3467081,189.08,189.02,12.0085416]
[1735263323566,2.6483,189.05,189.02,12.0085416]
[1735263324268,2.6479,189.08,189.04,2.6483]
[1735263324472,101.82193325,189.1,189.04,6.2599416]
[1735263324473,3.42516007,189.1,189.04,6.2599416]
[1735263325767,3.42516007,189.1,189.06,2.648]
[1735263325967,3.42516007,189.1,189.07,3.1]
[1735263326166,6.07276007,189.1,189.07,3.1]
[1735263326367,3.42516007,189.1,189.07,3.1]
[1735263326872,2.6477,189.09,189.07,3.1]
[1735263329665,6.07276007,189.1,189.07,3.1]
[1735263331076,2.6474,189.11,189.08,2.6478]
[1735263332672,2.6474,189.11,189.07,3.1]
[1735263334676,2.6472,189.13,189.09,2.6476]
[1735263334880,6.2599416,189.16,189.08,6.2599416]
[1735263335081,1.6595,189.2,189.1,6.2599416]
[1735263335281,6.2599416,189.19,189.1,6.2599416]
[1735263335480,2.6468,189.16,189.12,2.6472]
[1735263335682,6.2599416,189.19,189.13,3.1]
[1735263335982,6.2599416,189.15,189.13,3.1]
[1735263336876,2.647,189.14,189.13,3.1]
[1735263346285,2.6468,189.16,189.13,3.1]
[1735263346488,6.2599416,189.18,189.13,3.1]
[1735263346887,2.6469,189.15,189.13,3.1]
[1735263348990,2.647,189.14,189.13,3.1]
[1735263361095,29.3467081,189.19,189.13,3.1]
[1735263362296,13.59661862,189.21,189.13,3.1]
[1735263362498,2.6469,189.15,189.13,3.1]
[1735263363901,6.2599416,189.19,189.09,1.6595]
[1735263364089,6.2599416,189.17,189.1,3.1]
[1735263364695,2.6474,189.11,189.1,3.1]
[1735263364899,6.2599416,189.13,189.06,60.66246788]
[1735263365093,6.2599416,189.13,189.07,3.1]
[1735263365497,2.6478,189.08,189.07,3.1]
[1735263367198,2.6476,189.1,189.07,3.1]
[1735263367595,6.2599416,189.13,189.07,3.1]
[1735263367800,7.33667702,189.14,189.07,3.1]
[1735263367995,6.2599416,189.12,189.07,3.1]
[1735263368500,7.33667702,189.14,189.07,9.3599416]
[1735263368902,2.6471,189.13,189.09,8.9074416]
[1735263369103,2.6471,189.13,189.09,6.2599416]
[1735263369396,2.6471,189.13,189.09,8.9074416]
[1735263370496,2.6471,189.13,189.1,2.6475]
[1735263376008,2.6471,189.13,189.11,3.1]
[1735263379606,2.6475,189.11,189.08,2.6477]
[1735263379811,2.6475,189.11,189.09,3.1]
[1735263380212,2.6475,189.11,189.09,5.7476]
[1735263380411,2.6473,189.12,189.09,5.7476]
[1735263380904,2.647,189.14,189.09,3.1]
[1735263381306,13.59661862,189.16,189.1,2.6473]
[1735263381812,2.6469,189.14,189.1,2.6473]
[1735263382312,2.6468,189.15,189.11,2.6472]
[1735263385716,2.6466,189.16,189.13,2.647]
[1735263386013,7.33667702,189.19,189.14,3.1]
[1735263386209,29.3467081,189.19,189.14,3.1]
[1735263386409,29.3467081,189.19,189.14,9.3599416]
[1735263386907,31.9930081,189.19,189.15,2.6467]
[1735263387713,2.6463,189.19,189.15,2.6467]
[1735263390415,2.6464,189.18,189.14,9.3599416]
[1735263390917,112.05700909,189.24,189.14,3.1]
[1735263390918,2.6467,189.16,189.14,3.1]
[1735263391212,2.6467,189.16,189.1,6.2599416]
[1735263391415,6.2599416,189.17,189.1,6.2599416]
[1735263391616,6.2599416,189.17,189.08,6.2599416]
[1735263391815,6.2599416,189.17,189.11,3.1]
[1735263392213,2.6469,189.14,189.11,3.1]
[1735263392516,6.2599416,189.17,189.07,1.6317]
[1735263392715,2.6472,189.12,189.08,3.1]
[1735263394311,6.2599416,189.13,189.07,1.6317]
[1735263394615,6.2599416,189.11,189.06,60.66246788]
[1735263396419,2.6475,189.1,189.06,63.31046788]
[1735263396716,6.2599416,189.11,189.06,60.66246788]
[1735263397218,2.6477,189.09,189.06,60.66246788]
[1735263398722,2.6477,189.09,189.06,63.31046788]
[1735263399322,6.2599416,189.13,189.06,63.31046788]
[1735263399620,2.6475,189.1,189.06,63.31046788]
[1735263399822,6.2599416,189.13,189.07,2.6478]
[1735263400121,10.50332344,189.16,189.07,6.2599416]
[1735263400122,6.2599416,189.15,189.07,6.2599416]
[1735263400323,7.36042344,189.16,189.11,2.6472]
[1735263400620,7.36042344,189.16,189.12,3.1]
[1735263401326,58.88338758,189.18,189.12,3.1]
[1735263401327,2.647,189.13,189.12,3.1]
[1735263403025,6.2599416,189.17,189.12,3.1]
[1735263404026,2.6469,189.14,189.12,3.1]
[1735263404519,6.2599416,189.17,189.12,3.1]
[1735263404719,2.6468,189.15,189.12,3.1]
[1735263409226,2.6469,189.14,189.12,3.1]
[1735263417227,2.6467,189.16,189.12,5.7472]
[1735263417433,37.23633538,189.21,189.12,5.7472]
[1735263417633,6.2599416,189.19,189.1,6.2599416]
[1735263417835,2.6473,189.12,189.11,3.1]
[1735263420334,6.2599416,189.15,189.07,1.6269]
[1735263420530,2.6477,189.08,189.07,1.6269]
[1735263420731,6.2599416,189.15,189.07,4.7269]
[1735263421434,6.2599416,189.13,189.07,4.7269]
[1735263422525,6.2599416,189.09,189.03,1.542]
[1735263422729,6.2599416,189.09,189.05,3.1]
[1735263423135,2.648,189.06,189.05,3.1]
[1735263424431,6.2599416,189.09,189.05,3.1]
[1735263424627,2.6479,189.07,189.05,3.1]
[1735263425135,13.62036504,189.11,189.05,3.1]
[1735263425538,6.2599416,189.11,189.05,3.1]
[1735263425731,2.648,189.07,189.05,3.1]
[1735263426538,2.648,189.06,189.05,3.1]
[1735263429240,35.70163538,189.13,189.05,9.3599416]
[1735263429938,2.6476,189.09,189.05,12.0080416]
[1735263430536,2.6473,189.12,189.07,6.2599416]
[1735263430739,2.6473,189.12,189.09,6.2599416]
[1735263431037,2.6473,189.12,189.1,3.1]
[1735263432835,7.36042344,189.19,189.11,6.2599416]
[1735263433035,2.6469,189.15,189.1,3.1]
[1735263433233,6.2599416,189.18,189.11,6.2599416]
[1735263435037,2.647,189.14,189.11,6.2599416]
[1735263435541,6.2599416,189.2,189.13,6.2599416]
[1735263435942,2.6468,189.15,189.13,6.2599416]
[1735263439549,8.88682344,189.23,189.13,8.9069416]
[1735263439550,2.6466,189.17,189.13,8.9069416]
[1735263440945,104.72033207,189.24,189.16,2.6466]
[1735263441248,110.98027367,189.24,189.17,3.1]
[1735263442646,2.6463,189.18,189.17,3.1]
[1735263444251,2.6463,189.18,189.16,6.2599416]
[1735263444452,2.6463,189.18,189.17,3.1]
[1735263447948,2.6458,189.22,189.18,2.6463]
[1735263448154,2.6458,189.22,189.21,6.2599416]
[1735263450253,2.6458,189.22,189.19,6.2599416]
[1735263461467,2.6455,189.24,189.2,2.646]
[1735263461659,7.8044416,189.28,189.21,6.2599416]
[1735263461861,7.8044416,189.28,189.22,3.1]
[1735263462464,2.6457,189.23,189.22,3.1]
[1735263462871,104.95398761,189.28,189.22,3.1]
[1735263463166,2.6449,189.29,189.26,6.2599416]
[1735263463365,2.6449,189.29,189.27,3.1]
[1735263463760,2.645,189.28,189.27,3.1]
[1735263464358,7.36042344,189.31,189.27,3.1]
[1735263464561,2.6448,189.3,189.27,3.1]
[1735263465259,2.6448,189.3,189.27,9.3599416]
[1735263465667,7.36042344,189.35,189.27,9.3599416]
[1735263466265,2.6442,189.34,189.27,12.0050416]
[1735263466470,35.70163538,189.36,189.29,6.2599416]
[1735263467265,6.2599416,189.36,189.27,9.3599416]
[1735263467961,2.6447,189.31,189.29,6.2599416]
[1735263469768,2.6441,189.34,189.29,6.2599416]
[1735263469967,13.62036504,189.36,189.29,6.2599416]
[1735263470467,7.36042344,189.36,189.29,6.2599416]
[1735263470668,13.62036504,189.37,189.29,6.2599416]
[1735263471468,2.6444,189.32,189.29,6.2599416]
[1735263472059,2.644,189.35,189.31,6.2599416]
[1735263472264,32.57249378,189.38,189.31,6.2599416]
[1735263472670,7.36042344,189.38,189.32,3.1]
[1735263473473,2.6442,189.34,189.32,3.1]
[1735263474167,2.6442,189.34,189.33,6.2599416]
[1735263475974,2.6442,189.34,189.33,3.1]
[1735263482475,2.6441,189.35,189.33,9.3599416]
[1735263482677,32.53389378,189.42,189.33,9.3599416]
[1735263482867,2.644,189.36,189.33,9.3599416]
[1735263484573,2.6441,189.35,189.33,3.1]
[1735263484776,2.6441,189.35,189.34,6.2599416]
[1735263488778,7.36042344,189.41,189.34,6.2599416]
[1735263488977,2.644,189.36,189.34,6.2599416]
[1735263489280,7.36042344,189.41,189.34,6.2599416]
[1735263489475,2.6434,189.4,189.38,6.2599416]
[1735263489778,2.6434,189.4,189.39,3.18]
[1735263490179,7.36042344,189.41,189.39,3.18]
[1735263490379,10.00372344,189.41,189.39,3.18]
[1735263490778,2.6433,189.41,189.39,3.18]
[1735263491980,2.6431,189.42,189.39,3.18]
[1735263493675,6.2599416,189.46,189.31,1.6648]
[1735263493872,2.6434,189.4,189.36,6.2599416]
[1735263494179,2.6434,189.4,189.37,3.18]
[1735263497582,2.6434,189.4,189.38,6.2599416]
[1735263499687,6.2599416,189.44,189.38,6.2599416]
[1735263499886,2.6433,189.41,189.38,6.2599416]
[1735263503192,29.44169378,189.45,189.4,6.2599416]
[1735263504084,29.44169378,189.46,189.4,6.2599416]
[1735263504495,2.6431,189.42,189.4,6.2599416]
[1735263505687,10.00282344,189.47,189.42,2.643]
[1735263505991,7.36042344,189.47,189.46,6.2599416]
[1735263506389,29.44169378,189.49,189.46,6.2599416]
[1735263507193,29.44169378,189.49,189.45,3.18]
[1735263507392,2.6423,189.48,189.45,9.4399416]
[1735263509092,2.6423,189.48,189.45,3.18]
[1735263509896,2.6423,189.48,189.45,9.4399416]
[1735263510893,2.6425,189.47,189.45,9.4399416]
[1735263511797,6.2599416,189.5,189.45,3.18]
[1735263511992,6.2599416,189.5,189.41,1.6766]
[1735263512193,6.2599416,189.48,189.44,3.4]
[1735263512388,2.6427,189.45,189.44,3.4]
[1735263515195,6.2599416,189.48,189.38,3.2636]
[1735263515494,6.2599416,189.44,189.39,3.4]
[1735263515693,6.2599416,189.44,189.37,3.4]
[1735263516094,6.2599416,189.42,189.35,3.4]
[1735263517290,6.2599416,189.42,189.34,6.2599416]
[1735263518197,29.44169378,189.44,189.36,6.2599416]
[1735263518498,2.6431,189.43,189.38,8.9035416]
[1735263518698,2.6431,189.43,189.38,9.6599416]
[1735263518897,29.44169378,189.44,189.4,6.2599416]
[1735263519094,2.6426,189.46,189.42,8.9030416]
[1735263519299,29.44169378,189.47,189.42,6.2599416]
[1735263520005,2.6426,189.46,189.43,3.4]
[1735263520299,2.6426,189.46,189.44,6.2599416]
[1735263521096,2.6424,189.48,189.44,6.2599416]
[1735263521299,6.2599416,189.52,189.44,6.2599416]
[1735263521700,7.36042344,189.53,189.48,6.2599416]
[1735263521896,7.36042344,189.53,189.48,9.6599416]
[1735263522094,7.36042344,189.53,189.48,3.4]
[1735263522404,13.62036504,189.54,189.48,3.4]
[1735263523099,0.85918031,189.53,189.48,3.4]
[1735263523403,2.6421,189.49,189.48,3.4]
[1735263523599,6.2599416,189.54,189.47,3.4]
[1735263523799,0.85921768,189.53,189.47,3.4]
[1735263524702,6.2599416,189.54,189.47,3.4]
[1735263525602,2.6422,189.49,189.47,3.4]
[1735263526302,13.62036504,189.56,189.48,6.2599416]
[1735263526506,2.642,189.5,189.48,6.2599416]
[1735263530310,29.44169378,189.55,189.48,6.2599416]
[1735263530513,2.6416,189.53,189.5,6.2599416]
[1735263530912,2.6416,189.53,189.52,6.2599416]
[1735263531111,2.6416,189.53,189.52,9.6599416]
[1735263531509,2.6416,189.53,189.52,3.4]
[1735263532603,163.8676335,189.57,189.51,6.2599416]
[1735263532809,163.8676335,189.57,189.54,6.2599416]
[1735263533208,171.22805694,189.57,189.54,6.2599416]
[1735263534315,163.8676335,189.57,189.54,6.2599416]
[1735263534518,2.6413,189.55,189.54,6.2599416]
[1735263536017,2.6416,189.53,189.52,9.6599416]
[1735263536217,2.6416,189.53,189.52,3.4]
[1735263536914,163.8676335,189.57,189.51,6.2599416]
[1735263537210,2.6417,189.52,189.51,6.2599416]
[1735263537416,2.6417,189.52,189.51,9.6599416]
[1735263539812,2.6416,189.53,189.51,9.6599416]
[1735263540819,2.6416,189.54,189.51,9.6599416]
[1735263541018,163.8676335,189.57,189.53,6.2599416]
[1735263541619,2.6412,189.56,189.53,8.9015416]
[1735263541919,163.8676335,189.57,189.53,6.2599416]
[1735263542618,2.6413,189.56,189.53,6.2599416]
[1735263543222,2.6413,189.55,189.53,6.2599416]
[1735263545526,2.6412,189.57,189.53,6.2599416]
[1735263545724,35.70163538,189.61,189.53,6.2599416]
[1735263546124,2.641,189.58,189.55,6.2599416]
[1735263546420,29.44169378,189.61,189.47,4.702]
[1735263546723,2.6413,189.56,189.54,6.2599416]
[1735263546921,2.6413,189.56,189.55,3.38]
[1735263548820,2.6415,189.54,189.53,3.38]
[1735263550326,29.44169378,189.6,189.53,3.38]
[1735263550528,29.44169378,189.6,189.54,6.2599416]